Workbook

Sheet БЮДЖЕТ_НОВЫЙ

Sheet ДОХОДЫ_НОВЫЙ

Sheet РАСХОДЫ_НОВЫЙ

Sheet ПРОГРАММЫ_НОВЫЙ

Sheet РП(2) (hidden)
A1: ='Дефицит-профицит'!A1 -> 1 | B1: =INDEX('муниципальные программы(2)'!A2:A4, A1) -> 2026 г. ПЛАН
A2: Организация муниципального управления | B2: =VLOOKUP(B$1,'ПСР(2)'!$A:$R,MATCH(A2,'ПСР(2)'!$A$1:$R$1,0),0) -> 673326.1989 | C2: =TEXT(B2,"# ##0") & " тыс. руб." -> 673 326 тыс. руб. | D2: =B2/SUM($B$2:$B$17) -> 0.1633969754 | E2: =TEXT(ROUND(D2*100,2),"# ##0,00") & "%" -> 16,34% | G2: =RANK(B2,$B$2:$B$17,0)+COUNTIF($B$2:B2,B2)-1 -> 2 | H2: =IFERROR(INDEX($A$2:$A$17,MATCH(ROW(A1),$G$2:$G$17,0)),NA()) -> Развитие образования | I2: =IFERROR(INDEX($B$2:$B$17,MATCH(ROW(A1),$G$2:$G$17,0)),NA()) -> 2073727.602 | J2: =TEXT(I2,"# ##0") & " тыс. руб." -> 2 073 728 тыс. руб. | K2: =I2/SUM($I$2:$I$17) -> 0.5032342699 | L2: =ROUND(K2*100,0) -> 50 | M2: =L2 -> 50
A3: Управление муниципальной собственностью | B3: =VLOOKUP(B$1,'ПСР(2)'!$A:$R,MATCH(A3,'ПСР(2)'!$A$1:$R$1,0),0) -> 43864.90795 | C3: =TEXT(B3,"# ##0") & " тыс. руб." -> 43 865 тыс. руб. | D3: =B3/SUM($B$2:$B$17) -> 0.01064475628 | E3: =TEXT(ROUND(D3*100,2),"# ##0,00") & "%" -> 1,06% | G3: =RANK(B3,$B$2:$B$17,0)+COUNTIF($B$2:B3,B3)-1 -> 10 | H3: =IFERROR(INDEX($A$2:$A$17,MATCH(ROW(A2),$G$2:$G$17,0)),NA()) -> Организация муниципального управления | I3: =IFERROR(INDEX($B$2:$B$17,MATCH(ROW(A2),$G$2:$G$17,0)),NA()) -> 673326.1989 | J3: =TEXT(I3,"# ##0") & " тыс. руб." -> 673 326 тыс. руб. | K3: =I3/SUM($I$2:$I$17) -> 0.1633969754 | L3: =ROUND(K3*100,0) -> 16 | M3: =L3 -> 16
A4: Безопасность | B4: =VLOOKUP(B$1,'ПСР(2)'!$A:$R,MATCH(A4,'ПСР(2)'!$A$1:$R$1,0),0) -> 80282.03476 | C4: 80 282 тыс. руб. | D4: 0.01948214949 | E4: 1,95% | G4: =RANK(B4,$B$2:$B$17,0)+COUNTIF($B$2:B4,B4)-1 -> 8 | H4: Поддержка сферы культуры | I4: 357626.8568 | J4: 357 627 тыс. руб. | K4: 0.08678579093 | L4: 9 | M4: 9
A5: Дорожное хозяйство | B5: =VLOOKUP(B$1,'ПСР(2)'!$A:$R,MATCH(A5,'ПСР(2)'!$A$1:$R$1,0),0) -> 311946.2134 | C5: 311 946 тыс. руб. | D5: 0.07570040768 | E5: 7,57% | G5: =RANK(B5,$B$2:$B$17,0)+COUNTIF($B$2:B5,B5)-1 -> 4 | H5: Дорожное хозяйство | I5: 311946.2134 | J5: 311 946 тыс. руб. | K5: 0.07570040768 | L5: 8 | M5: 8
A6: Физическая культура и спорт | B6: =VLOOKUP(B$1,'ПСР(2)'!$A:$R,MATCH(A6,'ПСР(2)'!$A$1:$R$1,0),0) -> 139242.8 | C6: 139 243 тыс. руб. | D6: 0.03379023779 | E6: 3,38% | G6: =RANK(B6,$B$2:$B$17,0)+COUNTIF($B$2:B6,B6)-1 -> 6 | H6: Благоустройство территорий | I6: 150592.8712 | J6: 150 593 тыс. руб. | K6: 0.03654457486 | L6: 4 | M6: 4
A7: Развитие образования | B7: =VLOOKUP(B$1,'ПСР(2)'!$A:$R,MATCH(A7,'ПСР(2)'!$A$1:$R$1,0),0) -> 2073727.602 | C7: 2 073 728 тыс. руб. | D7: 0.5032342699 | E7: 50,32% | G7: =RANK(B7,$B$2:$B$17,0)+COUNTIF($B$2:B7,B7)-1 -> 1 | H7: Физическая культура и спорт | I7: 139242.8 | J7: 139 243 тыс. руб. | K7: 0.03379023779 | L7: 3 | M7: 3
A8: Поддержка сферы культуры | B8: =VLOOKUP(B$1,'ПСР(2)'!$A:$R,MATCH(A8,'ПСР(2)'!$A$1:$R$1,0),0) -> 357626.8568 | C8: 357 627 тыс. руб. | D8: 0.08678579093 | E8: 8,68% | G8: =RANK(B8,$B$2:$B$17,0)+COUNTIF($B$2:B8,B8)-1 -> 3 | H8: Переселение граждан из аварийного жилфонда | I8: 129593.259 | J8: 129 593 тыс. руб. | K8: 0.03144857068 | L8: 3 | M8: 3
A9: Молодежная политика | B9: =VLOOKUP(B$1,'ПСР(2)'!$A:$R,MATCH(A9,'ПСР(2)'!$A$1:$R$1,0),0) -> 8885.42 | C9: 8 885 тыс. руб. | D9: 0.002156236837 | E9: 0,22% | G9: =RANK(B9,$B$2:$B$17,0)+COUNTIF($B$2:B9,B9)-1 -> 14 | H9: Безопасность | I9: 80282.03476 | J9: 80 282 тыс. руб. | K9: 0.01948214949 | L9: 2 | M9: 2
A10: Реализация полномочий в области социальной политики | B10: =VLOOKUP(B$1,'ПСР(2)'!$A:$R,MATCH(A10,'ПСР(2)'!$A$1:$R$1,0),0) -> 40162.9 | C10: 40 163 тыс. руб. | D10: 0.009746385028 | E10: 0,97% | G10: =RANK(B10,$B$2:$B$17,0)+COUNTIF($B$2:B10,B10)-1 -> 11 | H10: Осуществление бюджетных инвестиций в объекты муниципальной собственности и учреждения бюджетной сферы и муниципальные жилые помещения | I10: 61056.51 | J10: 61 057 тыс. руб. | K10: 0.0148166655 | L10: 1 | M10: 1
A11: Переселение граждан из аварийного жилфонда | B11: =VLOOKUP(B$1,'ПСР(2)'!$A:$R,MATCH(A11,'ПСР(2)'!$A$1:$R$1,0),0) -> 129593.259 | C11: 129 593 тыс. руб. | D11: 0.03144857068 | E11: 3,14% | G11: =RANK(B11,$B$2:$B$17,0)+COUNTIF($B$2:B11,B11)-1 -> 7 | H11: Управление муниципальной собственностью | I11: 43864.90795 | J11: 43 865 тыс. руб. | K11: 0.01064475628 | L11: 1 | M11: 1
A12: Благоустройство территорий | B12: =VLOOKUP(B$1,'ПСР(2)'!$A:$R,MATCH(A12,'ПСР(2)'!$A$1:$R$1,0),0) -> 150592.8712 | C12: 150 593 тыс. руб. | D12: 0.03654457486 | E12: 3,65% | G12: =RANK(B12,$B$2:$B$17,0)+COUNTIF($B$2:B12,B12)-1 -> 5 | H12: Реализация полномочий в области социальной политики | I12: 40162.9 | J12: 40 163 тыс. руб. | K12: 0.009746385028 | L12: 1 | M12: 1
A13: Осуществление бюджетных инвестиций в объекты муниципальной собственности и учреждения бюджетной сферы и муниципальные жилые помещения | B13: =VLOOKUP(B$1,'ПСР(2)'!$A:$R,MATCH(A13,'ПСР(2)'!$A$1:$R$1,0),0) -> 61056.51 | C13: 61 057 тыс. руб. | D13: 0.0148166655 | E13: 1,48% | G13: =RANK(B13,$B$2:$B$17,0)+COUNTIF($B$2:B13,B13)-1 -> 9 | H13: Развитие коммунального хозяйства | I13: 23286.238 | J13: 23 286 тыс. руб. | K13: 0.005650902734 | L13: 1 | M13: 1
A14: Создание условий для предоставления транспортных услуг населению и организация транспортного обслуживания населения | B14: =VLOOKUP(B$1,'ПСР(2)'!$A:$R,MATCH(A14,'ПСР(2)'!$A$1:$R$1,0),0) -> 21968.53435 | C14: 21 969 тыс. руб. | D14: 0.005331133815 | E14: 0,53% | G14: =RANK(B14,$B$2:$B$17,0)+COUNTIF($B$2:B14,B14)-1 -> 13 | H14: Создание условий для предоставления транспортных услуг населению и организация транспортного обслуживания населения | I14: 21968.53435 | J14: 21 969 тыс. руб. | K14: 0.005331133815 | L14: 1 | M14: 1
A15: Развитие коммунального хозяйства | B15: =VLOOKUP(B$1,'ПСР(2)'!$A:$R,MATCH(A15,'ПСР(2)'!$A$1:$R$1,0),0) -> 23286.238 | C15: 23 286 тыс. руб. | D15: 0.005650902734 | E15: 0,57% | G15: =RANK(B15,$B$2:$B$17,0)+COUNTIF($B$2:B15,B15)-1 -> 12 | H15: Молодежная политика | I15: 8885.42 | J15: 8 885 тыс. руб. | K15: 0.002156236837 | L15: 0 | M15: 0
A16: Обеспечение комплексного пространственного и территориального развития Нижнеилимского муниципального округа Иркутской области | B16: =VLOOKUP(B$1,'ПСР(2)'!$A:$R,MATCH(A16,'ПСР(2)'!$A$1:$R$1,0),0) -> 237.30185 | C16: 237 тыс. руб. | D16: 5.75863595e-05 | E16: 0,01% | G16: =RANK(B16,$B$2:$B$17,0)+COUNTIF($B$2:B16,B16)-1 -> 16 | H16: Снос аварийных объектов капитального строительства | I16: 5000 | J16: 5 000 тыс. руб. | K16: 0.001213356733 | L16: 0 | M16: 0
A17: Снос аварийных объектов капитального строительства | B17: =VLOOKUP(B$1,'ПСР(2)'!$A:$R,MATCH(A17,'ПСР(2)'!$A$1:$R$1,0),0) -> 5000 | C17: 5 000 тыс. руб. | D17: 0.001213356733 | E17: 0,12% | G17: =RANK(B17,$B$2:$B$17,0)+COUNTIF($B$2:B17,B17)-1 -> 15 | H17: Обеспечение комплексного пространственного и территориального развития Нижнеилимского муниципального округа Иркутской области | I17: 237.30185 | J17: 237 тыс. руб. | K17: 5.75863595e-05 | L17: 0 | M17: 0
A18: ИТОГО | B18: =SUM(B2:B17) -> 4120799.649 | C18: =TEXT(B18,"# ##0") & " тыс. руб." -> 4 120 800 тыс. руб.

Sheet Лист1 (hidden)
A1: год | B1: расходы
A2: 2026 | B2: 4120800
A3: 2027 | B3: 3256328
A4: 2028 | B4: 3188113

Sheet БЮДЖЕТ (hidden)
E5: ='Дефицит-профицит'!$B$17 -> 3803562.92 | F5: тыс. руб. | K5: ='Дефицит-профицит'!$B$13 -> 4150642.1 | AX5: тыс. руб.
K21: ='Дефицит-профицит'!B21 -> -347079.18 | L21: ='Дефицит-профицит'!#REF! ->  | M21: тыс. руб.

Sheet ДОХОДЫ (hidden)
B6: НАЛОГОВЫХ ДОХОДОВ (тыс.руб.) | E6: НЕНАЛОГОВЫХ ДОХОДОВ (тыс.руб.) | J6: БЕЗВОЗМЕЗДНЫХ ПОСТУПЛЕНИЙ (тыс.руб.)

Sheet РАСХОДЫ (2) (hidden)

Sheet РАСХОДЫ (hidden)

Sheet ПРОГРАММЫ (hidden)
B3: СРЕДСТВА НА РЕАЛИЗАЦИЮ МУНИЦИПАЛЬНЫХ ПРОГРАММ | H3: =РП!$B$16 -> 1408294.2 | I3: тыс.руб.
C4: =РП!$A$2 -> Энергосбережение и повышение энергетической эффективности на территории Усть-Илимского муниципального округа | E4: =РП!$B$2 -> 800 | G4: =РП!$A$3 -> Здоровое поколение | I4: =РП!$B$3 -> 16519.1
C6: =РП!$A$8 -> «Безопасность» Усть-Илимского муниципального округа | E6: =РП!$B$8 -> 40362.3 | G6: =РП!$A$13 -> Архитектура и градостроительство в Усть-Илимском муниципальном округе | I6: =РП!$B$13 -> 50436
C7: =РП!$A$4 -> Развитие культуры | E7: =РП!$B$4 -> 97693.5 | G7: =РП!$A$7 -> Образование в Усть-Илимском муниципальном округе | I7: =РП!$B$7 -> 792885.8
C8: =РП!$A$9 -> Дороги Усть-Илимского муниципального округа | E8: =РП!$B$9 -> 66729.4 | G8: =РП!$A$14 -> Формирование комфортной городской среды на территории Усть-Илимского муниципального округа | I8: =РП!$B$14 -> 8842.1
C9: =РП!$A$10 -> Совершенствование муниципального управления Администрации Усть-Илимского муниципального округа | E9: =РП!$B$10 -> 137243.8 | G9: =РП!$A$12 -> Охрана окружающей среды на территории Усть-Илимского муниципального округа | I9: =РП!$B$12 -> 63501.6
C10: =РП!$A$11 -> Модернизация объектов коммунальной инфраструктуры Усть-Илимского муниципального округа | E10: =РП!$B$11 -> 56155 | G10: =РП!$A$15 -> Повышение эффективности деятельности муниципальных унитарных предприятий Усть-Илимского муниципального округа | I10: =РП!$B$15 -> 10000
C11: =РП!$A$6 -> Муниципальные финансы Усть-Илимского муниципального округа | E11: =РП!$B$6 -> 39167.6 | G11: =РП!$A$5 -> Муниципальная собственность Усть-Илимского муниципального округа | I11: =РП!$B$5 -> 27958

Sheet РП (hidden)
A1: 1 | B1: =INDEX('муниципальные программы'!A2:A4, A1) -> 2025 г. ПЛАН
A2: Энергосбережение и повышение энергетической эффективности на территории Усть-Илимского муниципального округа | B2: =VLOOKUP(B$1,'муниципальные программы'!$A:$O,MATCH(A2,'муниципальные программы'!$A$1:$O$1,0),0) -> 800
A3: Здоровое поколение | B3: =VLOOKUP(B$1,'муниципальные программы'!$A:$O,MATCH(A3,'муниципальные программы'!$A$1:$O$1,0),0) -> 16519.1
A4: Развитие культуры | B4: =VLOOKUP(B$1,'муниципальные программы'!$A:$O,MATCH(A4,'муниципальные программы'!$A$1:$O$1,0),0) -> 97693.5
A5: Муниципальная собственность Усть-Илимского муниципального округа | B5: =VLOOKUP(B$1,'муниципальные программы'!$A:$O,MATCH(A5,'муниципальные программы'!$A$1:$O$1,0),0) -> 27958
A6: Муниципальные финансы Усть-Илимского муниципального округа | B6: =VLOOKUP(B$1,'муниципальные программы'!$A:$O,MATCH(A6,'муниципальные программы'!$A$1:$O$1,0),0) -> 39167.6
A7: Образование в Усть-Илимском муниципальном округе | B7: =VLOOKUP(B$1,'муниципальные программы'!$A:$O,MATCH(A7,'муниципальные программы'!$A$1:$O$1,0),0) -> 792885.8
A8: «Безопасность» Усть-Илимского муниципального округа | B8: =VLOOKUP(B$1,'муниципальные программы'!$A:$O,MATCH(A8,'муниципальные программы'!$A$1:$O$1,0),0) -> 40362.3
A9: Дороги Усть-Илимского муниципального округа | B9: =VLOOKUP(B$1,'муниципальные программы'!$A:$O,MATCH(A9,'муниципальные программы'!$A$1:$O$1,0),0) -> 66729.4
A10: Совершенствование муниципального управления Администрации Усть-Илимского муниципального округа | B10: =VLOOKUP(B$1,'муниципальные программы'!$A:$O,MATCH(A10,'муниципальные программы'!$A$1:$O$1,0),0) -> 137243.8
A11: Модернизация объектов коммунальной инфраструктуры Усть-Илимского муниципального округа | B11: =VLOOKUP(B$1,'муниципальные программы'!$A:$O,MATCH(A11,'муниципальные программы'!$A$1:$O$1,0),0) -> 56155
A12: Охрана окружающей среды на территории Усть-Илимского муниципального округа | B12: =VLOOKUP(B$1,'муниципальные программы'!$A:$O,MATCH(A12,'муниципальные программы'!$A$1:$O$1,0),0) -> 63501.6
A13: Архитектура и градостроительство в Усть-Илимском муниципальном округе | B13: =VLOOKUP(B$1,'муниципальные программы'!$A:$O,MATCH(A13,'муниципальные программы'!$A$1:$O$1,0),0) -> 50436
A14: Формирование комфортной городской среды на территории Усть-Илимского муниципального округа | B14: =VLOOKUP(B$1,'муниципальные программы'!$A:$O,MATCH(A14,'муниципальные программы'!$A$1:$O$1,0),0) -> 8842.1
A15: Повышение эффективности деятельности муниципальных унитарных предприятий Усть-Илимского муниципального округа | B15: =VLOOKUP(B$1,'муниципальные программы'!$A:$O,MATCH(A15,'муниципальные программы'!$A$1:$O$1,0),0) -> 10000
A16: ИТОГО | B16: =SUM(B2:B15) -> 1408294.2

Sheet муниципальные программы (hidden)
A1: Столбец1 | B1: Энергосбережение и повышение энергетической эффективности на территории Усть-Илимского муниципального округа | C1: Здоровое поколение | D1: Развитие культуры | E1: Муниципальная собственность Усть-Илимского муниципального округа | F1: Муниципальные финансы Усть-Илимского муниципального округа | G1: Образование в Усть-Илимском муниципальном округе | H1: «Безопасность» Усть-Илимского муниципального округа | I1: Дороги Усть-Илимского муниципального округа | J1: Совершенствование муниципального управления Администрации Усть-Илимского муниципального округа | K1: Модернизация объектов коммунальной инфраструктуры Усть-Илимского муниципального округа | L1: Охрана окружающей среды на территории Усть-Илимского муниципального округа | M1: Архитектура и градостроительство в Усть-Илимском муниципальном округе | N1: Формирование комфортной городской среды на территории Усть-Илимского муниципального округа | O1: Повышение эффективности деятельности муниципальных унитарных предприятий Усть-Илимского муниципального округа | P1: ИТОГО
A2: 2025 г. ПЛАН | B2: 800 | C2: 16519.1 | D2: 97693.5 | E2: 27958 | F2: 39167.6 | G2: 792885.8 | H2: 40362.3 | I2: 66729.4 | J2: 137243.8 | K2: 56155 | L2: 63501.6 | M2: 50436 | N2: 8842.1 | O2: 10000 | P2: =SUM(B2:O2) -> 1408294.2
A3: 2026 г. ПЛАН | B3: 300 | C3: 12170.1 | D3: 76998.5 | E3: 22608.4 | F3: 41234.9 | G3: 737947.7 | H3: 26468.8 | I3: 66287.7 | J3: 115190.3 | K3: 23000 | L3: 18634.9 | M3: 4100 | N3: 2000 | O3: 0 | P3: =SUM(B3:O3) -> 1146941.3
A4: 2027 г. ПЛАН | B4: 300 | C4: 12170.1 | D4: 76985.9 | E4: 22108.4 | F4: 46108.1 | G4: 815060.4 | H4: 24668.8 | I4: 73858.8 | J4: 114310 | K4: 10600 | L4: 17207.9 | M4: 2100 | N4: 600 | O4: 0 | P4: =SUM(B4:O4) -> 1216078.4

Sheet Програм.расходы (hidden)
A1: 2 | B1: =INDEX('муниципальные программы'!A2:A4, A1) -> 2026 г. ПЛАН
A2: Энергосбережение и повышение энергетической эффективности на территории Усть-Илимского муниципального округа | B2: =VLOOKUP(B$1,ПСР!$A:$P,MATCH(A2,ПСР!$A$1:$P$1,0),0) -> 300
A3: Здоровое поколение | B3: =VLOOKUP(B$1,ПСР!$A:$P,MATCH(A3,ПСР!$A$1:$P$1,0),0) -> 12170.1
A4: Развитие культуры | B4: =VLOOKUP(B$1,ПСР!$A:$P,MATCH(A4,ПСР!$A$1:$P$1,0),0) -> 76998.5
A5: Муниципальная собственность Усть-Илимского муниципального округа | B5: =VLOOKUP(B$1,ПСР!$A:$P,MATCH(A5,ПСР!$A$1:$P$1,0),0) -> 22608.4
A6: Муниципальные финансы Усть-Илимского муниципального округа | B6: =VLOOKUP(B$1,ПСР!$A:$P,MATCH(A6,ПСР!$A$1:$P$1,0),0) -> 41234.9
A7: Образование в Усть-Илимском муниципальном округе | B7: =VLOOKUP(B$1,ПСР!$A:$P,MATCH(A7,ПСР!$A$1:$P$1,0),0) -> 737947.7
A8: «Безопасность» Усть-Илимского муниципального округа | B8: =VLOOKUP(B$1,ПСР!$A:$P,MATCH(A8,ПСР!$A$1:$P$1,0),0) -> 26468.8
A9: Дороги Усть-Илимского муниципального округа | B9: =VLOOKUP(B$1,ПСР!$A:$P,MATCH(A9,ПСР!$A$1:$P$1,0),0) -> 66287.7
A10: Совершенствование муниципального управления Администрации Усть-Илимского муниципального округа | B10: =VLOOKUP(B$1,ПСР!$A:$P,MATCH(A10,ПСР!$A$1:$P$1,0),0) -> 115190.3
A11: Модернизация объектов коммунальной инфраструктуры Усть-Илимского муниципального округа | B11: =VLOOKUP(B$1,ПСР!$A:$P,MATCH(A11,ПСР!$A$1:$P$1,0),0) -> 23000
A12: Охрана окружающей среды на территории Усть-Илимского муниципального округа | B12: =VLOOKUP(B$1,ПСР!$A:$P,MATCH(A12,ПСР!$A$1:$P$1,0),0) -> 18634.9
A13: Архитектура и градостроительство в Усть-Илимском муниципальном округе | B13: =VLOOKUP(B$1,ПСР!$A:$P,MATCH(A13,ПСР!$A$1:$P$1,0),0) -> 4100
A14: Формирование комфортной городской среды на территории Усть-Илимского муниципального округа | B14: =VLOOKUP(B$1,ПСР!$A:$P,MATCH(A14,ПСР!$A$1:$P$1,0),0) -> 2000
A15: Повышение эффективности деятельности муниципальных унитарных предприятий Усть-Илимского муниципального округа | B15: =VLOOKUP(B$1,ПСР!$A:$P,MATCH(A15,ПСР!$A$1:$P$1,0),0) -> 0
A16: Непрограммные расходы | B16: =VLOOKUP(B$1,ПСР!$A:$P,MATCH(A16,ПСР!$A$1:$P$1,0),0) -> 58599.5
A17: ИТОГО

Sheet ПСР (hidden)
A1: Столбец1 | B1: Энергосбережение и повышение энергетической эффективности на территории Усть-Илимского муниципального округа | C1: Здоровое поколение | D1: Развитие культуры | E1: Муниципальная собственность Усть-Илимского муниципального округа | F1: Муниципальные финансы Усть-Илимского муниципального округа | G1: Образование в Усть-Илимском муниципальном округе | H1: «Безопасность» Усть-Илимского муниципального округа | I1: Дороги Усть-Илимского муниципального округа | J1: Совершенствование муниципального управления Администрации Усть-Илимского муниципального округа | K1: Модернизация объектов коммунальной инфраструктуры Усть-Илимского муниципального округа | L1: Охрана окружающей среды на территории Усть-Илимского муниципального округа | M1: Архитектура и градостроительство в Усть-Илимском муниципальном округе | N1: Формирование комфортной городской среды на территории Усть-Илимского муниципального округа | O1: Повышение эффективности деятельности муниципальных унитарных предприятий Усть-Илимского муниципального округа | P1: Непрограммные расходы | Q1: ИТОГО
A2: 2025 г. ПЛАН | B2: 800 | C2: 16519.1 | D2: 97693.5 | E2: 27958 | F2: 39167.6 | G2: 792885.8 | H2: 40362.3 | I2: 66729.4 | J2: 137243.8 | K2: 56155 | L2: 63501.6 | M2: 50436 | N2: 8842.1 | O2: 10000 | P2: 58953.7 | Q2: =SUM(B2:P2) -> 1467247.9
A3: 2026 г. ПЛАН | B3: 300 | C3: 12170.1 | D3: 76998.5 | E3: 22608.4 | F3: 41234.9 | G3: 737947.7 | H3: 26468.8 | I3: 66287.7 | J3: 115190.3 | K3: 23000 | L3: 18634.9 | M3: 4100 | N3: 2000 | O3: 0 | P3: 58599.5 | Q3: =SUM(B3:P3) -> 1205540.8
A4: 2027 г. ПЛАН | B4: 300 | C4: 12170.1 | D4: 76985.9 | E4: 22108.4 | F4: 46108.1 | G4: 815060.4 | H4: 24668.8 | I4: 73858.8 | J4: 114310 | K4: 10600 | L4: 17207.9 | M4: 2100 | N4: 600 | O4: 0 | P4: 57921.6 | Q4: =SUM(B4:P4) -> 1274000

Sheet муниципальные программы(2) (hidden)
B1: Организация муниципального управления | C1: Управление муниципальной собственностью | D1: Безопасность | E1: Дорожное хозяйство | F1: Физическая культура и спорт | G1: Развитие образования | H1: Поддержка сферы культуры | I1: Молодежная политика | J1: Реализация полномочий в области социальной политики | K1: Переселение граждан из аварийного жилфонда | L1: Благоустройство территорий | M1: Осуществление бюджетных инвестиций в объекты муниципальной собственности и учреждения бюджетной сферы и муниципальные жилые помещения | N1: Создание условий для предоставления транспортных услуг населению и организация транспортного обслуживания населения | O1: Развитие коммунального хозяйства | P1: Обеспечение комплексного пространственного и территориального развития Нижнеилимского муниципального округа Иркутской области | Q1: Снос аварийных объектов капитального строительства на территории Нижнеилимского муниципального округа | R1: ИТОГО
A2: 2026 г. ПЛАН | B2: 673326.1989 | C2: 43864.90795 | D2: 80282.03476 | E2: 311946.2134 | F2: 139242.8 | G2: 2073727.602 | H2: 357626.8568 | I2: 8885.42 | J2: 40162.9 | K2: 129593.259 | L2: 150592.8712 | M2: 61056.46078 | N2: 21968.53435 | O2: 23286.238 | P2: 237.30185 | Q2: 5000 | R2: =SUM(B2:Q2) -> 4120799.599
A3: 2027 г. ПЛАН | B3: 512278.1488 | C3: 1100 | D3: 46000 | E3: 254915.2 | F3: 64882.3 | G3: 1920696.5 | H3: 234493.21 | I3: 1938.4 | J3: 35860.3 | K3: 136913.8512 | L3: 47250 | M3: 0 | N3: 0 | O3: 0 | P3: 0 | Q3: 0 | R3: =SUM(B3:Q3) -> 3256327.91
A4: 2028 г. ПЛАН | B4: 513937.8 | C4: 1100 | D4: 46000 | E4: 259388.3 | F4: 64882.3 | G4: 1983258 | H4: 234498.3 | I4: 1938.4 | J4: 35860.3 | K4: 0 | L4: 47250 | M4: 0 | N4: 0 | O4: 0 | P4: 0 | Q4: 0 | R4: =SUM(B4:Q4) -> 3188113.4

Sheet Програм.расходы (2) (hidden)
A1: ='Дефицит-профицит'!A1 -> 1 | B1: =INDEX('муниципальные программы(2)'!A2:A4, A1) -> 2026 г. ПЛАН
A2: Организация муниципального управления | B2: =VLOOKUP(B$1,'ПСР(2)'!$A:$R,MATCH(A2,'ПСР(2)'!$A$1:$R$1,0),0) -> 673326.1989 | C2: =IF(B2=0,"",RANK(B2,$B$2:$B$17,0)) -> 2 | D2: =IFERROR(INDEX($A$2:$A$17,MATCH(ROW(A1),$C$2:$C$17,0)),NA()) -> Развитие образования | E2: =IFERROR(INDEX($B$2:$B$17,MATCH(ROW(A1),$C$2:$C$17,0)),NA()) -> 2073727.602 | F2: =E2 -> 2073727.602 | G2: =TEXT(F2,"# ##0") & " тыс. руб." -> 2 073 728 тыс. руб. | H2: =D2 -> Развитие образования | I2: =E2/SUM(IF(ISNUMBER($E$2:$E$17),$E$2:$E$17)) -> 0.5032342699 | J2: =ROUND(I2*100,0) -> 50 | K2: =J2 -> 50
A3: Управление муниципальной собственностью | B3: =VLOOKUP(B$1,'ПСР(2)'!$A:$R,MATCH(A3,'ПСР(2)'!$A$1:$R$1,0),0) -> 43864.90795 | C3: =IF(B3=0,"",RANK(B3,$B$2:$B$17,0)) -> 10 | D3: =IFERROR(INDEX($A$2:$A$17,MATCH(ROW(A2),$C$2:$C$17,0)),NA()) -> Организация муниципального управления | E3: =IFERROR(INDEX($B$2:$B$17,MATCH(ROW(A2),$C$2:$C$17,0)),NA()) -> 673326.1989 | F3: =E3 -> 673326.1989 | G3: =TEXT(F3,"# ##0") & " тыс. руб." -> 673 326 тыс. руб. | H3: =D3 -> Организация муниципального управления | I3: =E3/SUM(IF(ISNUMBER($E$2:$E$17),$E$2:$E$17)) -> 0.1633969754 | J3: =ROUND(I3*100,0) -> 16 | K3: =J3 -> 16
A4: Безопасность | B4: =VLOOKUP(B$1,'ПСР(2)'!$A:$R,MATCH(A4,'ПСР(2)'!$A$1:$R$1,0),0) -> 80282.03476 | C4: 8 | D4: Поддержка сферы культуры | E4: 357626.8568 | F4: 357626.8568 | G4: 357 627 тыс. руб. | H4: Поддержка сферы культуры | I4: =E4/SUM(IF(ISNUMBER($E$2:$E$17),$E$2:$E$17)) -> 0.08678579093 | J4: 9 | K4: 9
A5: Дорожное хозяйство | B5: =VLOOKUP(B$1,'ПСР(2)'!$A:$R,MATCH(A5,'ПСР(2)'!$A$1:$R$1,0),0) -> 311946.2134 | C5: 4 | D5: Дорожное хозяйство | E5: 311946.2134 | F5: 311946.2134 | G5: 311 946 тыс. руб. | H5: Дорожное хозяйство | I5: =E5/SUM(IF(ISNUMBER($E$2:$E$17),$E$2:$E$17)) -> 0.07570040768 | J5: =ROUND(I5*100,0) -> 8 | K5: 8
A6: Физическая культура и спорт | B6: =VLOOKUP(B$1,'ПСР(2)'!$A:$R,MATCH(A6,'ПСР(2)'!$A$1:$R$1,0),0) -> 139242.8 | C6: 6 | D6: Благоустройство территорий | E6: 150592.8712 | F6: 150592.8712 | G6: 150 593 тыс. руб. | H6: Благоустройство территорий | I6: =E6/SUM(IF(ISNUMBER($E$2:$E$17),$E$2:$E$17)) -> 0.03654457486 | J6: 4 | K6: 4
A7: Развитие образования | B7: =VLOOKUP(B$1,'ПСР(2)'!$A:$R,MATCH(A7,'ПСР(2)'!$A$1:$R$1,0),0) -> 2073727.602 | C7: 1 | D7: Физическая культура и спорт | E7: 139242.8 | F7: 139242.8 | G7: 139 243 тыс. руб. | H7: Физическая культура и спорт | I7: =E7/SUM(IF(ISNUMBER($E$2:$E$17),$E$2:$E$17)) -> 0.03379023779 | J7: =IF(AND(I7<=0.01483,I7>0.01),2,ROUND(I7*100,0)) -> 3 | K7: 3
A8: Поддержка сферы культуры | B8: =VLOOKUP(B$1,'ПСР(2)'!$A:$R,MATCH(A8,'ПСР(2)'!$A$1:$R$1,0),0) -> 357626.8568 | C8: 3 | D8: Переселение граждан из аварийного жилфонда | E8: 129593.259 | F8: 129593.259 | G8: 129 593 тыс. руб. | H8: Переселение граждан из аварийного жилфонда | I8: =E8/SUM(IF(ISNUMBER($E$2:$E$17),$E$2:$E$17)) -> 0.03144857068 | J8: =IF(AND(I8>0.01442,I8<0.01444),2,IF(AND(I8>0.0145,I8<0.01452),1,ROUND(I8*100,0))) -> 3 | K8: 3
A9: Молодежная политика | B9: =VLOOKUP(B$1,'ПСР(2)'!$A:$R,MATCH(A9,'ПСР(2)'!$A$1:$R$1,0),0) -> 8885.42 | C9: 14 | D9: Безопасность | E9: 80282.03476 | F9: =SUM(IF(ISNUMBER(E9:E18),E9:E18)) -> 284743.8469 | G9: =F9 -> 284743.8469 | H9: Иные программы | I9: =F9/SUM(IF(ISNUMBER($E$2:$E$17),$E$2:$E$17)) -> 0.06909917278 | J9: 7 | K9: 7
A10: Реализация полномочий в области социальной политики | B10: =VLOOKUP(B$1,'ПСР(2)'!$A:$R,MATCH(A10,'ПСР(2)'!$A$1:$R$1,0),0) -> 40162.9 | C10: 11 | D10: Осуществление бюджетных инвестиций в объекты муниципальной собственности и учреждения бюджетной сферы и муниципальные жилые помещения | E10: 61056.51
A11: Переселение граждан из аварийного жилфонда | B11: =VLOOKUP(B$1,'ПСР(2)'!$A:$R,MATCH(A11,'ПСР(2)'!$A$1:$R$1,0),0) -> 129593.259 | C11: 7 | D11: Управление муниципальной собственностью | E11: 43864.90795
A12: Благоустройство территорий | B12: =VLOOKUP(B$1,'ПСР(2)'!$A:$R,MATCH(A12,'ПСР(2)'!$A$1:$R$1,0),0) -> 150592.8712 | C12: 5 | D12: Реализация полномочий в области социальной политики | E12: 40162.9
A13: Осуществление бюджетных инвестиций в объекты муниципальной собственности и учреждения бюджетной сферы и муниципальные жилые помещения | B13: =VLOOKUP(B$1,'ПСР(2)'!$A:$R,MATCH(A13,'ПСР(2)'!$A$1:$R$1,0),0) -> 61056.51 | C13: 9 | D13: Развитие коммунального хозяйства | E13: 23286.238
A14: Создание условий для предоставления транспортных услуг населению и организация транспортного обслуживания населения | B14: =VLOOKUP(B$1,'ПСР(2)'!$A:$R,MATCH(A14,'ПСР(2)'!$A$1:$R$1,0),0) -> 21968.53435 | C14: 13 | D14: Создание условий для предоставления транспортных услуг населению и организация транспортного обслуживания населения | E14: 21968.53435
A15: Развитие коммунального хозяйства | B15: =VLOOKUP(B$1,'ПСР(2)'!$A:$R,MATCH(A15,'ПСР(2)'!$A$1:$R$1,0),0) -> 23286.238 | C15: 12 | D15: Молодежная политика | E15: 8885.42
A16: Обеспечение комплексного пространственного и территориального развития Нижнеилимского муниципального округа Иркутской области | B16: =VLOOKUP(B$1,'ПСР(2)'!$A:$R,MATCH(A16,'ПСР(2)'!$A$1:$R$1,0),0) -> 237.30185 | C16: 16 | D16: Снос аварийных объектов капитального строительства | E16: 5000
A17: Снос аварийных объектов капитального строительства | B17: =VLOOKUP(B$1,'ПСР(2)'!$A:$R,MATCH(A17,'ПСР(2)'!$A$1:$R$1,0),0) -> 5000 | C17: 15 | D17: Обеспечение комплексного пространственного и территориального развития Нижнеилимского муниципального округа Иркутской области | E17: 237.30185
A18: Непрограммные расходы | B18: =VLOOKUP(B$1,'ПСР(2)'!$A:$R,MATCH(A18,'ПСР(2)'!$A$1:$R$1,0),0) -> 29842.051
A19: ИТОГО

Sheet ПСР(2) (hidden)
B1: Организация муниципального управления | C1: Управление муниципальной собственностью | D1: Безопасность | E1: Дорожное хозяйство | F1: Физическая культура и спорт | G1: Развитие образования | H1: Поддержка сферы культуры | I1: Молодежная политика | J1: Реализация полномочий в области социальной политики | K1: Переселение граждан из аварийного жилфонда | L1: Благоустройство территорий | M1: Осуществление бюджетных инвестиций в объекты муниципальной собственности и учреждения бюджетной сферы и муниципальные жилые помещения | N1: Создание условий для предоставления транспортных услуг населению и организация транспортного обслуживания населения | O1: Развитие коммунального хозяйства | P1: Обеспечение комплексного пространственного и территориального развития Нижнеилимского муниципального округа Иркутской области | Q1: Снос аварийных объектов капитального строительства | R1: Непрограммные расходы | S1: ИТОГО
A2: 2026 г. ПЛАН | B2: 673326.1989 | C2: 43864.90795 | D2: 80282.03476 | E2: 311946.2134 | F2: 139242.8 | G2: 2073727.602 | H2: 357626.8568 | I2: 8885.42 | J2: 40162.9 | K2: 129593.259 | L2: 150592.8712 | M2: 61056.51 | N2: 21968.53435 | O2: 23286.238 | P2: 237.30185 | Q2: 5000 | R2: 29842.051 | S2: =SUM(B2:R2) -> 4150641.7
A3: 2027 г. ПЛАН | B3: 512278.1488 | C3: 1100 | D3: 46000 | E3: 254915.2 | F3: 64882.3 | G3: 1920696.5 | H3: 234493.21 | I3: 1938.5 | J3: 35860.3 | K3: 136913.8512 | L3: 47250 | M3: 0 | N3: 0 | O3: 0 | P3: 0 | Q3: 0 | R3: 17948 | S3: =SUM(B3:R3) -> 3274276.01 | T3: =(S3-S2)/S2 -> -0.2111398076 | U3: =TEXT(ROUND(T3*100,0),"# ##0") & "%" -> -21%
A4: 2028 г. ПЛАН | B4: 513937.8 | C4: 1100 | D4: 46000 | E4: 259388.3 | F4: 64882.3 | G4: 1983258 | H4: 234498.3 | I4: 1938.5 | J4: 35860.2 | K4: 0 | L4: 47250 | M4: 0 | N4: 0 | O4: 0 | P4: 0 | Q4: 0 | R4: 17948 | S4: =SUM(B4:R4) -> 3206061.4 | T4: =(S4-S3)/S3 -> -0.02083349412 | U4: =TEXT(ROUND(T4*100,0),"# ##0") & "%" -> -2%
L6: было | M6: стало
K7: в строке 2026 изменил: | L7: 61056.46078 | M7: 61056.51
K8: в строке 2027 изменил: | L8: 1938.4 | M8: 1938.5
K9: в строке 2028 изменил: | L9: 1938.4 | M9: 1938.5
L10: 35860.3 | M10: 35860.2

Sheet Дефицит-профицит (hidden)
A1: 1 | B1: =INDEX('Доходы-расходы'!A2:A4, A1) -> 2026 г. ПЛАН
A2: Социальная политика | B2: =VLOOKUP(B$1,'Доходы-расходы'!$A:$R,MATCH(A2,'Доходы-расходы'!$A$1:$R$1,0),0) -> 41622.8 | C2: =VLOOKUP(B$1,'%для бюджет'!$A:$R,MATCH(A2,'%для бюджет'!$A$1:$R$1,0),0) -> 0 | D2: =RANK(B2,$B$2:$B$12,0) -> 8 | F2: =INDEX($A$2:$A$12,MATCH(ROW(A1),$D$2:$D$12,0)) -> Образование | G2: =INDEX($B$2:$B$12,MATCH(ROW(A1),$D$2:$D$12,0)) -> 2183826.8 | H2: =INDEX(C2:C12,MATCH(ROW(A1),$D$2:$D$12,0)) -> 52 | I2: =TEXT(G2,"# ##0") & " тыс. руб." -> 2 183 827 тыс. руб. | L2: =TEXT(H2,"# ##0") & "%" -> 52%
A3: Образование | B3: =VLOOKUP(B$1,'Доходы-расходы'!$A:$R,MATCH(A3,'Доходы-расходы'!$A$1:$R$1,0),0) -> 2183826.8 | C3: =VLOOKUP(B$1,'%для бюджет'!$A:$R,MATCH(A3,'%для бюджет'!$A$1:$R$1,0),0) -> 52 | D3: =RANK(B3,$B$2:$B$12,0) -> 1 | F3: =INDEX($A$2:$A$12,MATCH(ROW(A2),$D$2:$D$12,0)) -> Общегосударственные вопросы | G3: =INDEX($B$2:$B$12,MATCH(ROW(A2),$D$2:$D$12,0)) -> 705518.7 | H3: =INDEX(C2:C12,MATCH(ROW(A2),$D$2:$D$12,0)) -> 17 | I3: =TEXT(G3,"# ##0") & " тыс. руб." -> 705 519 тыс. руб. | L3: =TEXT(H3,"# ##0") & "%" -> 17%
A4: Культура и Кинематография | B4: =VLOOKUP(B$1,'Доходы-расходы'!$A:$R,MATCH(A4,'Доходы-расходы'!$A$1:$R$1,0),0) -> 288399.2 | C4: =VLOOKUP(B$1,'%для бюджет'!$A:$R,MATCH(A4,'%для бюджет'!$A$1:$R$1,0),0) -> 7 | D4: 4 | F4: Национальная экономика | G4: =INDEX($B$2:$B$12,MATCH(ROW(A3),$D$2:$D$12,0)) -> 415968.4 | H4: =INDEX(C2:C12,MATCH(ROW(A3),$D$2:$D$12,0)) -> 10 | I4: 415 968 тыс. руб. | L4: 10%
A5: Национальная экономика | B5: =VLOOKUP(B$1,'Доходы-расходы'!$A:$R,MATCH(A5,'Доходы-расходы'!$A$1:$R$1,0),0) -> 415968.4 | C5: =VLOOKUP(B$1,'%для бюджет'!$A:$R,MATCH(A5,'%для бюджет'!$A$1:$R$1,0),0) -> 10 | D5: 3 | F5: Культура и Кинематография | G5: 288399.2 | H5: =INDEX(C2:C12,MATCH(ROW(A4),$D$2:$D$12,0)) -> 7 | I5: 288 399 тыс. руб. | L5: 7%
A6: Общегосударственные вопросы | B6: =VLOOKUP(B$1,'Доходы-расходы'!$A:$R,MATCH(A6,'Доходы-расходы'!$A$1:$R$1,0),0) -> 705518.7 | C6: =VLOOKUP(B$1,'%для бюджет'!$A:$R,MATCH(A6,'%для бюджет'!$A$1:$R$1,0),0) -> 17 | D6: 2 | F6: Жилищно-коммунальное хозяйство | G6: 234774.2 | H6: =INDEX(C2:C12,MATCH(ROW(A5),$D$2:$D$12,0)) -> 6 | I6: 234 774 тыс. руб. | L6: 6%
A7: Физическая культура и спорт | B7: =VLOOKUP(B$1,'Доходы-расходы'!$A:$R,MATCH(A7,'Доходы-расходы'!$A$1:$R$1,0),0) -> 193416.1 | C7: =VLOOKUP(B$1,'%для бюджет'!$A:$R,MATCH(A7,'%для бюджет'!$A$1:$R$1,0),0) -> 5 | D7: 6 | F7: Физическая культура и спорт | G7: 193416.1 | H7: =INDEX(C2:C12,MATCH(ROW(A6),$D$2:$D$12,0)) -> 5 | I7: 193 416 тыс. руб. | L7: 5%
A8: Национальная безопасность | B8: =VLOOKUP(B$1,'Доходы-расходы'!$A:$R,MATCH(A8,'Доходы-расходы'!$A$1:$R$1,0),0) -> 76697 | C8: =VLOOKUP(B$1,'%для бюджет'!$A:$R,MATCH(A8,'%для бюджет'!$A$1:$R$1,0),0) -> 2 | D8: 7 | F8: Национальная безопасность | G8: 76697 | H8: =INDEX(C2:C12,MATCH(ROW(A7),$D$2:$D$12,0)) -> 2 | I8: 76 697 тыс. руб. | L8: 2%
A9: Национальная оборона | B9: =VLOOKUP(B$1,'Доходы-расходы'!$A:$R,MATCH(A9,'Доходы-расходы'!$A$1:$R$1,0),0) -> 5306.5 | C9: =VLOOKUP(B$1,'%для бюджет'!$A:$R,MATCH(A9,'%для бюджет'!$A$1:$R$1,0),0) -> 0 | D9: 9 | F9: Социальная политика | G9: 41622.8 | H9: =INDEX(C2:C12,MATCH(ROW(A8),$D$2:$D$12,0)) -> 0 | I9: =TEXT(G9,"# ##0") & " тыс. руб." -> 41 623 тыс. руб. | J9: =SUM(G9:G12) -> 52041.7 | K9: =TEXT(J9,"# ##0") & " тыс. руб." -> 52 042 тыс. руб.
A10: Обслуживание государственного внутреннего и муниципального долга | B10: =VLOOKUP(B$1,'Доходы-расходы'!$A:$R,MATCH(A10,'Доходы-расходы'!$A$1:$R$1,0),0) -> 300.5 | C10: =VLOOKUP(B$1,'%для бюджет'!$A:$R,MATCH(A10,'%для бюджет'!$A$1:$R$1,0),0) -> 0 | D10: 11 | F10: Национальная оборона | G10: 5306.5 | H10: =INDEX(C2:C12,MATCH(ROW(A9),$D$2:$D$12,0)) -> 0 | I10: 5 307 тыс. руб.
A11: Жилищно-коммунальное хозяйство | B11: =VLOOKUP(B$1,'Доходы-расходы'!$A:$R,MATCH(A11,'Доходы-расходы'!$A$1:$R$1,0),0) -> 234774.2 | C11: =VLOOKUP(B$1,'%для бюджет'!$A:$R,MATCH(A11,'%для бюджет'!$A$1:$R$1,0),0) -> 6 | D11: 5 | F11: Охрана окружающей среды | G11: 4811.9 | H11: =INDEX(C2:C12,MATCH(ROW(A10),$D$2:$D$12,0)) -> 0 | I11: 4 812 тыс. руб.
A12: Охрана окружающей среды | B12: =VLOOKUP(B$1,'Доходы-расходы'!$A:$R,MATCH(A12,'Доходы-расходы'!$A$1:$R$1,0),0) -> 4811.9 | C12: =VLOOKUP(B$1,'%для бюджет'!$A:$R,MATCH(A12,'%для бюджет'!$A$1:$R$1,0),0) -> 0 | D12: 10 | F12: Обслуживание государственного внутреннего и муниципального долга | G12: 300.5 | H12: =INDEX(C2:C12,MATCH(ROW(A11),$D$2:$D$12,0)) -> 0 | I12: 301 тыс. руб.
A13: ИТОГО (расходы): | B13: =VLOOKUP(B$1,'Доходы-расходы'!$A:$R,MATCH(A13,'Доходы-расходы'!$A$1:$R$1,0),0) -> 4150642.1
A14: Налоговые доходы | B14: =VLOOKUP(B$1,'Доходы-расходы'!$A:$R,MATCH(A14,'Доходы-расходы'!$A$1:$R$1,0),0) -> 1179283.8 | C14: =TEXT(B14,"# ##0") & " тыс. руб. " & TEXT(B14/B17,"0%") -> 1 179 284 тыс. руб. 31% | D14: =TEXT(B14,"# ##0") & " тыс. руб." -> 1 179 284 тыс. руб.
A15: Неналоговые доходы | B15: =VLOOKUP(B$1,'Доходы-расходы'!$A:$R,MATCH(A15,'Доходы-расходы'!$A$1:$R$1,0),0) -> 79480 | C15: =TEXT(B15,"# ##0") & " тыс. руб. " & TEXT(INT(B15/B17*100)/100,"0%") -> 79 480 тыс. руб. 2% | D15: =TEXT(B15,"# ##0") & " тыс. руб." -> 79 480 тыс. руб.
A16: Безвозмездные поступления | B16: =VLOOKUP(B$1,'Доходы-расходы'!$A:$R,MATCH(A16,'Доходы-расходы'!$A$1:$R$1,0),0) -> 2544799.12 | C16: =TEXT(B16,"# ##0") & " тыс. руб. " & TEXT(B16/B17,"0%") -> 2 544 799 тыс. руб. 67% | D16: =TEXT(B16,"# ##0") & " тыс. руб." -> 2 544 799 тыс. руб.
A17: ИТОГО (доходы): | B17: =VLOOKUP(B$1,'Доходы-расходы'!$A:$S,MATCH(A17,'Доходы-расходы'!$A$1:$R$1,0),0) -> 3803562.92
A21: Дефицит бюджета: | B21: =B17-B13 -> -347079.18 | C21: =TEXT(B21,"# ##0") -> -347 079 | D21: =IF(B21>=0,C21,"") ->  | E21: =IF(B21<0,C21,"") -> -347 079
A22: Профицит бюджета:

Sheet %для бюджет (hidden)
A1: Столбец1 | B1: Социальная политика | C1: Образование | D1: Культура и Кинематография | E1: Национальная экономика | F1: Общегосударственные вопросы | G1: Физическая культура и спорт | H1: Национальная безопасность | I1: Национальная оборона | J1: Обслуживание государственного внутреннего и муниципального долга | K1: Жилищно-коммунальное хозяйство | L1: Охрана окружающей среды | M1: Условно утвержденные | N1: ИТОГО (расходы): | O1: Налоговые доходы | P1: Неналоговые доходы | Q1: Безвозмездные поступления | R1: ИТОГО (доходы): | S1: Профицит бюджета: | T1: Дефицит бюджета:
A2: 2026 г. ПЛАН | B2: 0 | C2: 52 | D2: 7 | E2: 10 | F2: 17 | G2: 5 | H2: 2 | K2: 6 | N2: =SUM(B2:L2) -> 99 | S2: 0 | T2: =R2-N2 -> -99
A3: 2027 г. ПЛАН | B3: 0 | C3: 61 | D3: 6 | E3: 9 | F3: 15 | G3: 2 | H3: 1 | K3: 5 | N3: =SUM(B3:M3) -> 99 | T3: =R3-N3 -> -99
A4: 2028 г. ПЛАН | B4: 1 | C4: 64 | D4: 6 | E4: 9 | F4: 16 | G4: 2 | H4: 1 | K4: 0 | N4: =SUM(B4:M4) -> 99 | S4: 0 | T4: =R4-N4 -> -99

Sheet Доходы-расходы (hidden)
A1: Столбец1 | B1: Социальная политика | C1: Образование | D1: Культура и Кинематография | E1: Национальная экономика | F1: Общегосударственные вопросы | G1: Физическая культура и спорт | H1: Национальная безопасность | I1: Национальная оборона | J1: Обслуживание государственного внутреннего и муниципального долга | K1: Жилищно-коммунальное хозяйство | L1: Охрана окружающей среды | M1: Условно утвержденные | N1: ИТОГО (расходы): | O1: Налоговые доходы | P1: Неналоговые доходы | Q1: Безвозмездные поступления | R1: ИТОГО (доходы): | S1: Профицит бюджета: | T1: Дефицит бюджета:
A2: 2026 г. ПЛАН | B2: 41622.8 | C2: 2183826.8 | D2: 288399.2 | E2: 415968.4 | F2: 705518.7 | G2: 193416.1 | H2: 76697 | I2: 5306.5 | J2: 300.5 | K2: 234774.2 | L2: 4811.9 | N2: =SUM(B2:L2) -> 4150642.1 | O2: 1179283.8 | P2: 79480 | Q2: 2544799.12 | R2: =SUM(O2:Q2) -> 3803562.92 | S2: 0 | T2: =R2-N2 -> -347079.18
A3: 2027 г. ПЛАН | B3: 37844.9 | C3: 1998187.9 | D3: 181880.2 | E3: 277140.2 | F3: 498923.5 | G3: 73682.3 | H3: 45000 | I3: 5857.1 | J3: 300 | K3: 153138.9 | L3: 2320.9 | N3: =SUM(B3:M3) -> 3274275.9 | O3: 1250987.9 | P3: 81362 | Q3: 1912681.41 | R3: =SUM(O3:Q3) -> 3245031.31 | T3: =R3-N3 -> -29244.59
A4: 2028 г. ПЛАН | B4: 37844.9 | C4: 2060750 | D4: 181885 | E4: 281613 | F4: 498924.4 | G4: 73682.3 | H4: 45000 | I4: 7515.9 | J4: 300 | K4: 16225 | L4: 2320.9 | N4: =SUM(B4:M4) -> 3206061.4 | O4: 1297233 | P4: 137577 | Q4: 1811286 | R4: =SUM(O4:Q4) -> 3246096 | S4: 0 | T4: =R4-N4 -> 40034.6
B6: Налоговые доходы | C6: Неналоговые доходы | D6: Безвозмездные поступления | E6: ИТОГО:
A7: 2026 г. ПЛАН | B7: 1179283.8 | C7: 79480 | D7: 2544799.12 | E7: =SUM(B7:D7) -> 3803562.92
A8: 2027 г. ПЛАН | B8: 1250987.9 | C8: 81362 | D8: 1912681.41 | E8: =SUM(B8:D8) -> 3245031.31
A9: 2028 г. ПЛАН | B9: 1297233 | C9: 137577 | D9: 1811286 | E9: =SUM(B9:D9) -> 3246096
H14: заменили в строке 2026: | I14: вместо 415967,4 написали 415968,4
I15: вместо 4812,9 написали 4811,9
H16: заменили в строке 2028: | I16: 2060749.4 | J16: 2060750
I17: 281613.3 | J17: 281613
I18: 181885.3 | J18: 181885

Sheet БП (hidden)
A1: ='Дефицит-профицит'!A1 -> 1 | B1: =INDEX(НД!A2:A4, A1) -> 2026 г. ПЛАН
A2: Дотации бюджетам бюджетной системы Российской Федерации | B2: =VLOOKUP(B$1,НД!$A:$T,MATCH(A2,НД!$A$1:$T$1,0),0) -> 564719.4
A3: Субсидии бюджетам бюджетной системы Российской Федерации (межбюджетные субсидии) | B3: =VLOOKUP(B$1,НД!$A:$T,MATCH(A3,НД!$A$1:$T$1,0),0) -> 404508.43
A4: Субвенции бюджетам бюджетной системы Российской Федерации | B4: =VLOOKUP(B$1,НД!$A:$T,MATCH(A4,НД!$A$1:$T$1,0),0) -> 1476308.8
A5: Иные межбюджетные трансферты | B5: =VLOOKUP(B$1,НД!$A:$T,MATCH(A5,НД!$A$1:$T$1,0),0) -> 98812.51
A6: Прочие безвозмездные поступления в бюджеты муниципальных округов | B6: =VLOOKUP(B$1,НД!$A:$T,MATCH(A6,НД!$A$1:$T$1,0),0) -> 450
A7: ИТОГО | B7: =SUM(B2:B6) -> 2544799.14

Sheet нал.доходы (hidden)
A1: ='Дефицит-профицит'!A1 -> 1 | B1: =INDEX(НД!A2:A4, A1) -> 2026 г. ПЛАН
A2: Налог на доходы физических лиц | B2: =VLOOKUP(B$1,НД!$A:$T,MATCH(A2,НД!$A$1:$T$1,0),0) -> 910000
A3: Налог на совокупный доход | B3: =VLOOKUP(B$1,НД!$A:$T,MATCH(A3,НД!$A$1:$T$1,0),0) -> 120394
A4: Земельный налог | B4: =VLOOKUP(B$1,НД!$A:$T,MATCH(A4,НД!$A$1:$T$1,0),0) -> 32215
A5: Государственная пошлина | B5: =VLOOKUP(B$1,НД!$A:$T,MATCH(A5,НД!$A$1:$T$1,0),0) -> 26556
A6: Налоги на имущество физических лиц | B6: =VLOOKUP(B$1,НД!$A:$T,MATCH(A6,НД!$A$1:$T$1,0),0) -> 14724
A7: Акцизы по подакцизным товарам | B7: =VLOOKUP(B$1,НД!$A:$T,MATCH(A7,НД!$A$1:$T$1,0),0) -> 75394.8
A8: ИТОГО | B8: =SUM(B2:B7) -> 1179283.8

Sheet Ненал.доходы (hidden)
A1: ='Дефицит-профицит'!A1 -> 1 | B1: =INDEX(НД!A2:A4, A1) -> 2026 г. ПЛАН
A2: Доходы от продажи активов | B2: =VLOOKUP(B$1,НД!$A:$T,MATCH(A2,НД!$A$1:$T$1,0),0) -> 763
A3: Доходы от использования имущества, находящегося в муниципальной собственности | B3: =VLOOKUP(B$1,НД!$A:$T,MATCH(A3,НД!$A$1:$T$1,0),0) -> 18172
A4: Штрафы | B4: =VLOOKUP(B$1,НД!$A:$T,MATCH(A4,НД!$A$1:$T$1,0),0) -> 1900
A5: Прочие неналоговые доходы | B5: =VLOOKUP(B$1,НД!$A:$T,MATCH(A5,НД!$A$1:$T$1,0),0) -> 0
A6: Плата за негативное воздействие на окружающую среду | B6: =VLOOKUP(B$1,НД!$A:$T,MATCH(A6,НД!$A$1:$T$1,0),0) -> 0
A7: Доходы от оказания платных услуг и компенсации затрат государства | B7: =VLOOKUP(B$1,НД!$A:$T,MATCH(A7,НД!$A$1:$T$1,0),0) -> 58645
A8: ИТОГО | B8: =SUM(B2:B7) -> 79480

Sheet ДОХОДЫ (2) (hidden)
A1: ='Дефицит-профицит'!A1 -> 1 | B1: =INDEX(НД!A2:A4, A1) -> 2026 г. ПЛАН
A2: Налог на доходы физических лиц | B2: =VLOOKUP(B$1,НД!$A:$N,MATCH(A2,НД!$A$1:$N$1,0),0) -> 910000 | C2: =RANK(B2,$B$2:$B$7,0) -> 1 | D2: =INDEX($A$2:$A$7,MATCH(ROW(A1),$C$2:$C$7,0)) -> Налог на доходы физических лиц | E2: =INDEX($B$2:$B$7,MATCH(ROW(A1),$C$2:$C$7,0)) -> 910000 | G2: =TEXT(E2,"# ##0") & " тыс. руб." -> 910 000 тыс. руб. | I2: =VLOOKUP(B$1,'%НД'!$A:$N,MATCH(A2,'%НД'!$A$1:$N$1,0),0) -> 77 | J2: =INDEX(I2:I7,MATCH(ROW(A1),$C$2:$C$7,0)) -> 77 | K2: =TEXT(J2,"# ##0") & "%" -> 77%
A3: Налог на совокупный доход | B3: =VLOOKUP(B$1,НД!$A:$N,MATCH(A3,НД!$A$1:$N$1,0),0) -> 120394 | C3: =RANK(B3,$B$2:$B$7,0) -> 2 | D3: =INDEX($A$2:$A$7,MATCH(ROW(A2),$C$2:$C$7,0)) -> Налог на совокупный доход | E3: =INDEX($B$2:$B$7,MATCH(ROW(A2),$C$2:$C$7,0)) -> 120394 | G3: =TEXT(E3,"# ##0") & " тыс. руб." -> 120 394 тыс. руб. | I3: =VLOOKUP(B$1,'%НД'!$A:$N,MATCH(A3,'%НД'!$A$1:$N$1,0),0) -> 10 | J3: =INDEX(I2:I7,MATCH(ROW(A2),$C$2:$C$7,0)) -> 10 | K3: =TEXT(J3,"# ##0") & "%" -> 10%
A4: Земельный налог | B4: =VLOOKUP(B$1,НД!$A:$N,MATCH(A4,НД!$A$1:$N$1,0),0) -> 32215 | C4: 4 | D4: Акцизы по подакцизным товарам | E4: 75394.8 | G4: 75 395 тыс. руб. | I4: =VLOOKUP(B$1,'%НД'!$A:$N,MATCH(A4,'%НД'!$A$1:$N$1,0),0) -> 3 | J4: =INDEX(I2:I7,MATCH(ROW(A3),$C$2:$C$7,0)) -> 7 | K4: 7%
A5: Государственная пошлина | B5: =VLOOKUP(B$1,НД!$A:$N,MATCH(A5,НД!$A$1:$N$1,0),0) -> 26556 | C5: 5 | D5: Земельный налог | E5: 32215 | G5: 32 215 тыс. руб. | I5: =VLOOKUP(B$1,'%НД'!$A:$N,MATCH(A5,'%НД'!$A$1:$N$1,0),0) -> 2 | J5: =INDEX(I2:I7,MATCH(ROW(A4),$C$2:$C$7,0)) -> 3 | K5: 3%
A6: Налоги на имущество физических лиц | B6: =VLOOKUP(B$1,НД!$A:$N,MATCH(A6,НД!$A$1:$N$1,0),0) -> 14724 | C6: 6 | D6: Государственная пошлина | E6: 26556 | G6: 26 556 тыс. руб. | I6: =VLOOKUP(B$1,'%НД'!$A:$N,MATCH(A6,'%НД'!$A$1:$N$1,0),0) -> 1 | J6: =INDEX(I2:I7,MATCH(ROW(A5),$C$2:$C$7,0)) -> 2 | K6: 2%
A7: Акцизы по подакцизным товарам | B7: =VLOOKUP(B$1,НД!$A:$N,MATCH(A7,НД!$A$1:$N$1,0),0) -> 75394.8 | C7: 3 | D7: Налоги на имущество физических лиц | E7: 14724 | G7: 14 724 тыс. руб. | I7: =VLOOKUP(B$1,'%НД'!$A:$N,MATCH(A7,'%НД'!$A$1:$N$1,0),0) -> 7 | J7: =INDEX(I2:I7,MATCH(ROW(A6),$C$2:$C$7,0)) -> 1 | K7: 1%
A8: ИТОГО (налоговые доходы): | B8: =SUM(B2:B7) -> 1179283.8
A9: Доходы от продажи активов | B9: =VLOOKUP(B$1,НД!$A:$N,MATCH(A9,НД!$A$1:$N$1,0),0) -> 763 | C9: =IF(B9=0,"",RANK(B9,$B$9:$B$14,0)) -> 4 | D9: =IFERROR(INDEX($A$9:$A$14,MATCH(ROW(A1),$C$9:$C$14,0)),"") -> Доходы от оказания платных услуг и компенсации затрат государства | E9: =IFERROR(INDEX($B$9:$B$14,MATCH(ROW(A1),$C$9:$C$14,0)),"") -> 58645 | G9: =TEXT(E9,"# ##0") & " тыс. руб." -> 58 645 тыс. руб. | I9: =VLOOKUP(B$1,'%НД'!$A:$N,MATCH(A9,'%НД'!$A$1:$N$1,0),0) -> 1 | J9: =INDEX($I$9:$I$14,MATCH(ROW(A1),$C$9:$C$14,0)) -> 74 | K9: =TEXT(J9,"# ##0") & "%" -> 74%
A10: Доходы от использования имущества, находящегося в муниципальной собственности | B10: =VLOOKUP(B$1,НД!$A:$N,MATCH(A10,НД!$A$1:$N$1,0),0) -> 18172 | C10: =IF(B10=0,"",RANK(B10,$B$9:$B$14,0)) -> 2 | D10: =IFERROR(INDEX($A$9:$A$14,MATCH(ROW(A2),$C$9:$C$14,0)),"") -> Доходы от использования имущества, находящегося в муниципальной собственности | E10: =IFERROR(INDEX($B$9:$B$14,MATCH(ROW(A2),$C$9:$C$14,0)),"") -> 18172 | G10: =TEXT(E10,"# ##0") & " тыс. руб." -> 18 172 тыс. руб. | I10: =VLOOKUP(B$1,'%НД'!$A:$N,MATCH(A10,'%НД'!$A$1:$N$1,0),0) -> 23 | J10: =INDEX($I$9:$I$14,MATCH(ROW(A2),$C$9:$C$14,0)) -> 23 | K10: =TEXT(J10,"# ##0") & "%" -> 23%
A11: Штрафы | B11: =VLOOKUP(B$1,НД!$A:$N,MATCH(A11,НД!$A$1:$N$1,0),0) -> 1900 | C11: 3 | D11: Штрафы | E11: 1900 | G11: 1 900 тыс. руб. | I11: =VLOOKUP(B$1,'%НД'!$A:$N,MATCH(A11,'%НД'!$A$1:$N$1,0),0) -> 2 | J11: 2 | K11: 2%
A12: Прочие неналоговые доходы | B12: =VLOOKUP(B$1,НД!$A:$N,MATCH(A12,НД!$A$1:$N$1,0),0) -> 0 | D12: Доходы от продажи активов | E12: 763 | G12: 763 тыс. руб. | I12: =VLOOKUP(B$1,'%НД'!$A:$N,MATCH(A12,'%НД'!$A$1:$N$1,0),0) -> 0 | J12: 1 | K12: 1%
A13: Плата за негативное воздействие на окружающую среду | B13: =VLOOKUP(B$1,НД!$A:$N,MATCH(A13,НД!$A$1:$N$1,0),0) -> 0 | I13: =VLOOKUP(B$1,'%НД'!$A:$N,MATCH(A13,'%НД'!$A$1:$N$1,0),0) -> 0
A14: Доходы от оказания платных услуг и компенсации затрат государства | B14: =VLOOKUP(B$1,НД!$A:$N,MATCH(A14,НД!$A$1:$N$1,0),0) -> 58645 | C14: 1 | I14: =VLOOKUP(B$1,'%НД'!$A:$N,MATCH(A14,'%НД'!$A$1:$N$1,0),0) -> 74
A15: ИТОГО (неналоговые доходы): | B15: =SUM(B9:B14) -> 79480
A16: Дотации бюджетам бюджетной системы Российской Федерации | B16: =VLOOKUP(B$1,НД!$A:$T,MATCH(A16,НД!$A$1:$T$1,0),0) -> 564719.4 | C16: =IF(B16=0,"",RANK(B16,$B$16:$B$20,0)) -> 2 | D16: =IFERROR(INDEX($A$16:$A$20,MATCH(ROW(A1),$C$16:$C$20,0)),NA()) -> Субвенции бюджетам бюджетной системы Российской Федерации | E16: =IFERROR(INDEX($B$16:$B$20,MATCH(ROW(A1),$C$16:$C$20,0)),NA()) -> 1476308.8 | G16: =TEXT(E16,"# ##0") & " тыс. руб." -> 1 476 309 тыс. руб.
A17: Субсидии бюджетам бюджетной системы Российской Федерации (межбюджетные субсидии) | B17: =VLOOKUP(B$1,НД!$A:$T,MATCH(A17,НД!$A$1:$T$1,0),0) -> 404508.43 | C17: =IF(B17=0,"",RANK(B17,$B$16:$B$20,0)) -> 3 | D17: =IFERROR(INDEX($A$16:$A$20,MATCH(ROW(A2),$C$16:$C$20,0)),NA()) -> Дотации бюджетам бюджетной системы Российской Федерации | E17: =IFERROR(INDEX($B$16:$B$20,MATCH(ROW(A2),$C$16:$C$20,0)),NA()) -> 564719.4 | G17: =TEXT(E17,"# ##0") & " тыс. руб." -> 564 719 тыс. руб.
A18: Субвенции бюджетам бюджетной системы Российской Федерации | B18: =VLOOKUP(B$1,НД!$A:$T,MATCH(A18,НД!$A$1:$T$1,0),0) -> 1476308.8 | C18: 1 | D18: Субсидии бюджетам бюджетной системы Российской Федерации (межбюджетные субсидии) | E18: 404508.43 | G18: 404 508 тыс. руб.
A19: Иные межбюджетные трансферты | B19: =VLOOKUP(B$1,НД!$A:$T,MATCH(A19,НД!$A$1:$T$1,0),0) -> 98812.51 | C19: 4 | D19: Иные межбюджетные трансферты | E19: 98812.51 | G19: 98 813 тыс. руб.
A20: Прочие безвозмездные поступления в бюджеты муниципальных округов | B20: =VLOOKUP(B$1,НД!$A:$T,MATCH(A20,НД!$A$1:$T$1,0),0) -> 450 | C20: 5 | D20: Прочие безвозмездные поступления в бюджеты муниципальных округов | E20: 450 | G20: 450 тыс. руб. | J20: =IFERROR(E20/SUM($E$16:$E$20),0) -> 0.0001768312449 | K20: =IF(AND(J20>0,J20<0.01),"<1%","") -> <1%
A21: ИТОГО (безвозмездные поступления): | B21: =SUM(B16:B20) -> 2544799.14

Sheet %НД (hidden)
A1: Столбец1 | B1: Налог на доходы физических лиц | C1: Налог на совокупный доход | D1: Земельный налог | E1: Государственная пошлина | F1: Налоги на имущество физических лиц | G1: Акцизы по подакцизным товарам | H1: ИТОГО Налоговые доходы | I1: Доходы от продажи активов | J1: Доходы от использования имущества, находящегося в муниципальной собственности | K1: Штрафы | L1: Прочие неналоговые доходы | M1: Плата за негативное воздействие на окружающую среду | N1: Доходы от оказания платных услуг и компенсации затрат государства | O1: ИТОГО Неналоговые доходы | P1: Дотации бюджетам бюджетной системы Российской Федерации | Q1: Субсидии бюджетам бюджетной системы Российской Федерации (межбюджетные субсидии) | R1: Субвенции бюджетам бюджетной системы Российской Федерации | S1: Иные межбюджетные трансферты | T1: Прочие безвозмездные поступления в бюджеты муниципальных округов | U1: ИТОГО Безвозмездные поступления
A2: 2026 г. ПЛАН | B2: 77 | C2: 10 | D2: 3 | E2: 2 | F2: 1 | G2: 7 | H2: =SUM(B2:G2) -> 100 | I2: 1 | J2: 23 | K2: 2 | L2: 0 | M2: 0 | N2: 74 | O2: =SUM(I2:N2) -> 100 | U2: =SUM(P2:T2) -> 0
A3: 2027 г. ПЛАН | B3: 76 | C3: 10 | D3: 3 | E3: 2 | F3: 1 | G3: 8 | H3: =SUM(B3:G3) -> 100 | I3: 1 | J3: 25 | K3: 2 | L3: 0 | M3: 0 | N3: 72 | O3: =SUM(I3:N3) -> 100 | U3: =SUM(P3:T3) -> 0
A4: 2028 г. ПЛАН | B4: 77 | C4: 9 | D4: 3 | E4: 2 | F4: 1 | G4: 8 | H4: =SUM(B4:G4) -> 100 | I4: 1 | J4: 55 | K4: 1 | L4: 0 | M4: 0 | N4: 43 | O4: =SUM(I4:N4) -> 100 | U4: =SUM(P4:T4) -> 0

Sheet НД (hidden)
A1: Столбец1 | B1: Налог на доходы физических лиц | C1: Налог на совокупный доход | D1: Земельный налог | E1: Государственная пошлина | F1: Налоги на имущество физических лиц | G1: Акцизы по подакцизным товарам | H1: ИТОГО Налоговые доходы | I1: Доходы от продажи активов | J1: Доходы от использования имущества, находящегося в муниципальной собственности | K1: Штрафы | L1: Прочие неналоговые доходы | M1: Плата за негативное воздействие на окружающую среду | N1: Доходы от оказания платных услуг и компенсации затрат государства | O1: ИТОГО Неналоговые доходы | P1: Дотации бюджетам бюджетной системы Российской Федерации | Q1: Субсидии бюджетам бюджетной системы Российской Федерации (межбюджетные субсидии) | R1: Субвенции бюджетам бюджетной системы Российской Федерации | S1: Иные межбюджетные трансферты | T1: Прочие безвозмездные поступления в бюджеты муниципальных округов | U1: ИТОГО Безвозмездные поступления
A2: 2026 г. ПЛАН | B2: 910000 | C2: 120394 | D2: 32215 | E2: 26556 | F2: 14724 | G2: 75394.8 | H2: =SUM(B2:G2) -> 1179283.8 | I2: 763 | J2: 18172 | K2: 1900 | L2: 0 | M2: 0 | N2: 58645 | O2: =SUM(I2:N2) -> 79480 | P2: 564719.4 | Q2: 404508.43 | R2: 1476308.8 | S2: 98812.51 | T2: 450 | U2: =SUM(P2:T2) -> 2544799.14
A3: 2027 г. ПЛАН | B3: 952000 | C3: 121310 | D3: 32259 | E3: 26767 | F3: 14867 | G3: 103784.9 | H3: =SUM(B3:G3) -> 1250987.9 | I3: 844 | J3: 19957 | K3: 1900 | L3: 0 | M3: 0 | N3: 58661 | O3: =SUM(I3:N3) -> 81362 | P3: 0 | Q3: 329521.21 | R3: 1480975.1 | S3: 102185.1 | T3: 0 | U3: =SUM(P3:T3) -> 1912681.41
A4: 2028 г. ПЛАН | B4: 992000 | C4: 122695 | D4: 32299 | E4: 26963 | F4: 15018 | G4: 108258 | H4: =SUM(B4:G4) -> 1297233 | I4: 915 | J4: 76095 | K4: 1900 | L4: 0 | M4: 0 | N4: 58667 | O4: =SUM(I4:N4) -> 137577 | P4: 13562.4 | Q4: 207129.8 | R4: 1488334.8 | S4: 102259 | T4: 0 | U4: =SUM(P4:T4) -> 1811286
Q7: в строке 2026 заменили ячейку S2: | S7: вместо 98812,49 написали 98812,51
P8: в строке 2028 заменили Р4 | S8: 13562.5 | T8: 13562.4
S9: 207129.7 | T9: 207129.8

Sheet Расходы (hidden)
A1: 7 | B1: =INDEX(Структура!A2:A12, A1) -> Образование (тыс. руб.)
A2: 2026 г. ПЛАН | B2: =VLOOKUP(B$1,Структура!$A:$Q,MATCH(A2,Структура!$A$1:$Q$1,0),0) -> 2183826.8
A3: 2027 г. ПЛАН | B3: =VLOOKUP(B$1,Структура!$A:$Q,MATCH(A3,Структура!$A$1:$Q$1,0),0) -> 1998187.9
A4: 2028 г. ПЛАН | B4: =VLOOKUP(B$1,Структура!$A:$Q,MATCH(A4,Структура!$A$1:$Q$1,0),0) -> 2060749.4

Sheet Доходы1 (hidden)
A1: 1 | B1: =INDEX(Структура!A14:A16, A1) -> Налоговые доходы (тыс. руб.)
A2: 2026 г. ПЛАН | B2: =VLOOKUP(B$1,Структура!$A:$Q,MATCH(A2,Структура!$A$1:$Q$1,0),0) -> 1179283.8
A3: 2027 г. ПЛАН | B3: =VLOOKUP(B$1,Структура!$A:$Q,MATCH(A3,Структура!$A$1:$Q$1,0),0) -> 1250987.9
A4: 2028 г. ПЛАН | B4: =VLOOKUP(B$1,Структура!$A:$Q,MATCH(A4,Структура!$A$1:$Q$1,0),0) -> 1297233
A6: 1 | B6: Неналоговые доходы (тыс. руб.)
A7: 2025 г. ПЛАН | B7: 28440.6
A8: 2026 г. ПЛАН | B8: 29278.6
A9: 2027 г. ПЛАН | B9: 29784.3
A11: 3 | B11: Безвозмездные поступления
A12: 2025 г. ПЛАН | B12: 907495.7
A13: 2026 г. ПЛАН | B13: 736795
A14: 2027 г. ПЛАН | B14: 796006.9

Sheet Структура (hidden)
A1: Столбец1 | B1: 2026 г. ПЛАН | C1: 2027 г. ПЛАН | D1: 2028 г. ПЛАН
A2: Общегосударственные вопросы (тыс. руб.) | B2: 705518.7 | C2: 498923.5 | D2: 498924.4
A3: Национальная оборона (тыс. руб.) | B3: 5306.5 | C3: 5857.1 | D3: 7515.9
A4: Национальная безопасность и правоохранительная деятельность (тыс. руб.) | B4: 76697 | C4: 45000 | D4: 45000
A5: Национальная экономика (тыс. руб.) | B5: 415967.4 | C5: 277140.2 | D5: 281613.3
A6: Жилищно-коммунальное хозяйство (тыс. руб.) | B6: 234774.2 | C6: 153138.9 | D6: 16225
A7: Охрана окружающей среды (тыс. руб.) | B7: 4812.9 | C7: 2320.9 | D7: 2320.9
A8: Образование (тыс. руб.) | B8: 2183826.8 | C8: 1998187.9 | D8: 2060749.4
A9: Культура и Кинематография (тыс. руб.) | B9: 288399.2 | C9: 181880.2 | D9: 181885.3
A10: Социальная политика (тыс. руб.) | B10: 41622.8 | C10: 37844.9 | D10: 37844.9
A11: Физическая культура и спорт (тыс. руб.) | B11: 193416.1 | C11: 73682.3 | D11: 73682.3
A12: Обслуживание государственного внутреннего и муниципального долга (тыс. руб.) | B12: 300 | C12: 300 | D12: 300
A13: ИТОГО (расходы): | B13: =SUM(B2:B12) -> 4150641.6 | C13: =SUM(C2:C12) -> 3274275.9 | D13: =SUM(D2:D12) -> 3206061.4
A14: Налоговые доходы (тыс. руб.) | B14: 1179283.8 | C14: 1250987.9 | D14: 1297233
A15: Неналоговые доходы (тыс. руб.) | B15: 79480 | C15: 81362 | D15: 137577
A16: Безвозмездные поступления (тыс. руб.) | B16: 1877102.1 | C16: 1687882 | D16: 2194754.5
A17: ИТОГО (доходы): | B17: =SUM(B14:B16) -> 3135865.9 | C17: =SUM(C14:C16) -> 3020231.9 | D17: =SUM(D14:D16) -> 3629564.5
